bitfinex/quotes_SOLUSD_20240725
["timestamp","ask_amount","ask_price","bid_price","bid_amount"]
[1721884508583,389.2,172.52,172.39,1.15966825]
[1721884508584,5.7964,172.52,172.39,1.15966825]
[1721884508772,5.7961,172.53,172.4,1.15966647]
[1721884508963,5.7967,172.52,172.4,1.15966647]
[1721884509487,5.7968,172.51,172.4,1.15966647]
[1721884510183,6.6253,172.55,172.4,1.15966647]
[1721884510390,5.7963,172.53,172.4,1.15966647]
[1721884512073,50.7958,172.54,172.4,1.15966647]
[1721884512267,5.7961,172.53,172.4,1.15966647]
[1721884512467,5.7961,172.53,172.41,15.2881]
[1721884512880,5.7961,172.53,172.42,1.15953573]
[1721884513388,5.7961,172.53,172.41,15.2881]
[1721884515892,5.7961,172.53,172.42,1.15947604]
[1721884517094,5.7961,172.53,172.42,7.48477604]
[1721884517995,5.7978,172.48,172.38,1.97475651]
[1721884518416,5.7978,172.48,172.38,0.8152807]
[1721884518700,5.7981,172.47,172.38,0.8152807]
[1721884520596,16.17,172.52,172.38,1.97515245]
[1721884520797,5.7971,172.5,172.38,1.97515245]
[1721884521496,45.0,172.51,172.38,1.97515245]
[1721884521497,5.7974,172.49,172.38,1.97515245]
[1721884521695,5.7977,172.48,172.38,0.8152807]
[1721884521891,5.7977,172.48,172.38,1.97507993]
[1721884523020,5.7981,172.47,172.38,0.8152807]
[1721884523199,5.7978,172.48,172.39,1.15986435]
[1721884523407,5.7974,172.5,172.39,1.15986435]
[1721884523635,5.7968,172.51,172.4,22.4224]
[1721884523925,29.1,172.53,172.4,23.58201215]
[1721884524126,6.6253,172.55,172.41,45.0]
[1721884524127,12.421,172.55,172.41,45.0]
[1721884524298,23.35475254,172.55,172.42,1.15948986]
[1721884524498,23.35475254,172.55,172.43,1.15948972]
[1721884524698,6.6253,172.55,172.43,1.15948972]
[1721884524913,5.7957,172.54,172.43,1.15948972]
[1721884525517,5.7957,172.54,172.42,1.15947355]
[1721884526401,5.7957,172.54,172.43,1.15947352]
[1721884527207,5.7957,172.54,172.42,1.15947283]
[1721884527408,5.7961,172.53,172.42,1.15947283]
[1721884527621,5.7965,172.52,172.41,46.15948777]
[1721884527919,5.7961,172.53,172.41,46.15948777]
[1721884528119,5.7958,172.54,172.41,46.15948777]
[1721884528303,14.55,172.5,172.45,14.55]
[1721884529023,11.5931,172.53,172.4,22.4224]
[1721884529024,14.55,172.49,172.4,22.4224]
[1721884529208,14.55,172.49,172.44,14.55]
[1721884529825,14.55,172.47,172.4,22.4224]
[1721884530125,14.55,172.46,172.41,14.55]
[1721884531018,14.55,172.47,172.42,14.55]
[1721884531743,14.55,172.48,172.43,14.55]
[1721884533327,14.55,172.48,172.44,14.55]
[1721884533529,14.55,172.49,172.44,14.55]
[1721884534220,14.55,172.48,172.43,14.55]
[1721884534627,14.55,172.48,172.42,14.55]
[1721884534928,14.55,172.47,172.42,14.55]
[1721884535107,14.55,172.46,172.41,14.55]
[1721884535507,5.7975,172.49,172.42,14.55]
[1721884535508,14.55,172.47,172.42,14.55]
[1721884536233,5.7975,172.49,172.4,22.4224]
[1721884538726,5.797,172.51,172.41,1.15978555]
[1721884539418,5.7971,172.5,172.41,1.15978555]
[1721884542223,5.7971,172.5,172.4,22.4224]
[1721884545532,5.7981,172.48,172.4,22.4224]
[1721884545907,5.7981,172.48,172.4,16.1969]
[1721884546530,5.7981,172.47,172.4,16.1969]
[1721884546936,5.799,172.45,172.4,16.1969]
[1721884550039,5.7985,172.46,172.4,16.1969]
[1721884550337,45.0,172.45,172.4,16.1969]
[1721884550511,29.11,172.49,172.4,16.1969]
[1721884550714,25.798,172.48,172.4,16.1969]
[1721884550917,20.0,172.48,172.4,16.1969]
[1721884551222,36.73462227,172.5,172.4,16.1969]
[1721884551429,50.7976,172.49,172.4,16.1969]
[1721884551612,25.7978,172.48,172.4,16.1969]
[1721884552610,5.7978,172.48,172.4,16.1969]
[1721884553739,16.2370034,172.48,172.4,16.1969]
[1721884554251,5.7981,172.47,172.4,16.1969]
[1721884554434,5.7978,172.48,172.4,16.1969]
[1721884554644,16.23698648,172.48,172.4,16.1969]
[1721884555519,5.7978,172.48,172.4,16.1969]
[1721884556633,5.7981,172.47,172.4,16.1969]
[1721884558223,14.56,172.44,172.4,16.1969]
[1721884563049,45.0,172.49,172.42,14.56]
[1721884563243,14.56,172.48,172.43,14.56]
[1721884564270,23.2827394,172.56,172.45,14.56]
[1721884564427,23.2827394,172.56,172.4,17.35660206]
[1721884564428,14.56,172.51,172.46,14.56]
[1721884565025,14.56,172.5,172.45,14.56]
[1721884566058,14.56,172.5,172.38,0.8152807]
[1721884566059,14.56,172.46,172.38,0.8152807]
[1721884566259,14.56,172.44,172.38,15.3752807]
[1721884566643,14.56,172.44,172.39,14.56]
[1721884566844,14.56,172.45,172.39,14.56]
[1721884567366,80.689,172.49,172.41,14.56]
[1721884567544,14.56,172.46,172.41,14.56]
[1721884568472,394.997,172.51,172.42,14.56]
[1721884568640,394.997,172.51,172.43,14.56]
[1721884568641,14.56,172.48,172.43,14.56]
[1721884568841,14.56,172.49,172.44,14.56]
[1721884571159,14.56,172.45,172.38,0.8152807]
[1721884571355,14.56,172.41,172.38,0.8152807]
[1721884572162,14.56,172.42,172.38,0.8152807]
[1721884573341,14.56,172.43,172.38,15.3752807]
[1721884578590,14.56,172.41,172.38,0.8152807]
[1721884578768,20.3608,172.39,172.38,0.8152807]
[1721884579270,65.3608,172.39,172.38,0.8152807]
[1721884580659,71.1738,172.39,172.38,0.8152807]
[1721884581173,5.8024,172.35,172.23,18.8092583]
[1721884581371,15.945,172.4,172.26,14.56]
[1721884581372,14.56,172.32,172.26,14.56]
[1721884582675,14.56,172.32,172.27,14.56]
[1721884584382,14.56,172.31,172.23,16.5136]
[1721884584670,42.9007,172.31,172.21,3.15634137]
[1721884584874,14.56,172.24,172.21,0.8152807]
[1721884585188,14.56,172.23,172.21,0.8152807]
[1721884587477,5.8042,172.29,172.21,0.8152807]
[1721884587659,14.56,172.26,172.21,0.8152807]
[1721884588288,50.8038,172.3,172.21,0.8152807]
[1721884588578,5.8042,172.29,172.21,0.8152807]
[1721884588766,45.0,172.28,172.21,0.8152807]
[1721884590562,45.0,172.29,172.21,0.8152807]
[1721884591467,45.0,172.3,172.21,0.8152807]
[1721884591786,5.8044,172.29,172.21,0.8152807]
[1721884591979,50.8045,172.28,172.21,0.8152807]
[1721884592277,5.8042,172.29,172.21,0.8152807]
[1721884592593,51.7171,172.31,172.21,0.8152807]
[1721884592880,22.5371,172.31,172.21,0.8152807]
[1721884593076,28.3406,172.31,172.21,0.8152807]
[1721884593377,45.0,172.3,172.21,0.8152807]
[1721884593585,22.5371,172.31,172.21,0.8152807]
[1721884594167,57.2729,172.35,172.22,16.0916]
[1721884594368,25.8028,172.34,172.22,16.0916]
[1721884594573,5.8028,172.34,172.22,16.0916]
[1721884594976,45.0,172.33,172.22,16.0916]
[1721884595368,50.8028,172.33,172.22,16.0916]
[1721884596178,5.8025,172.34,172.22,16.0916]
[1721884596483,424.193,172.38,172.23,1.16085943]
[1721884596687,25.8014,172.37,172.23,46.16085943]
[1721884597475,20.0,172.37,172.23,46.16085943]
[1721884597681,22.8667,172.39,172.23,75.34085943]
[1721884597984,5.7998,172.42,172.26,29.18]
[1721884598168,5.7998,172.42,172.27,46.16037965]
[1721884598876,5.7998,172.42,172.28,15.0473]
[1721884599091,5.7998,172.42,172.29,46.16033486]
[1721884599290,35.7979,172.43,172.29,45.0]
[1721884599784,5.8005,172.4,172.29,45.0]
[1721884599983,5.8002,172.41,172.29,45.0]
[1721884600177,5.801,172.39,172.28,15.0473]
[1721884600682,5.8017,172.37,172.28,15.0473]
[1721884600883,29.18,172.4,172.28,15.0473]
[1721884601082,29.18,172.37,172.28,15.0473]
[1721884601286,45.0,172.36,172.28,15.0473]
[1721884601599,5.8024,172.35,172.24,21.2643]
[1721884601883,50.8028,172.34,172.24,21.2643]
[1721884602088,5.8028,172.34,172.24,21.2643]
[1721884603472,5.8022,172.35,172.24,21.2643]
[1721884603675,45.0,172.34,172.24,21.2643]
[1721884604074,50.8025,172.34,172.24,21.2643]
[1721884604870,5.8029,172.33,172.24,15.1944]
[1721884605277,50.8031,172.32,172.24,15.1944]
[1721884605687,29.18,172.34,172.24,15.1944]
[1721884605890,16.5526,172.35,172.24,15.1944]
[1721884606092,45.0,172.34,172.24,15.1944]
[1721884607869,50.8025,172.34,172.24,15.1944]
[1721884609487,5.8031,172.32,172.24,15.1944]
[1721884609691,45.0,172.31,172.24,15.1944]
[1721884610481,5.8038,172.3,172.24,15.1944]
[1721884610682,5.8038,172.3,172.21,0.8152807]
[1721884610683,45.0,172.29,172.21,0.8152807]
[1721884611184,50.8043,172.29,172.21,0.8152807]
[1721884611385,34.9848,172.28,172.21,0.8152807]
[1721884611603,5.8052,172.26,172.21,0.8152807]
[1721884611989,5.8048,172.27,172.21,0.8152807]
[1721884612203,45.0,172.26,172.21,0.8152807]
[1721884615677,45.0,172.27,172.21,0.8152807]
[1721884616790,5.8041,172.3,172.21,0.8152807]
[1721884616994,29.18,172.31,172.21,0.8152807]
[1721884617195,20.0,172.3,172.21,0.8152807]
[1721884617678,29.18,172.31,172.21,0.8152807]
[1721884618187,405.7526,172.35,172.23,16.2831]
[1721884618696,389.2,172.35,172.24,1.16084137]
[1721884619593,389.2,172.35,172.23,16.2831]
[1721884619979,395.0022,172.35,172.23,16.2831]
[1721884620200,5.8026,172.34,172.23,16.2831]
[1721884621500,29.18,172.34,172.23,16.2831]
[1721884621812,65.0,172.33,172.23,16.2831]
[1721884622010,70.8031,172.33,172.23,16.2831]
[1721884622399,45.0,172.33,172.23,16.2831]
[1721884622586,389.2,172.36,172.24,1.16089665]
[1721884622788,45.0,172.35,172.24,1.16089665]
[1721884623190,45.0,172.35,172.23,17.44394476]
[1721884623507,5.8021,172.35,172.23,16.2831]
[1721884623707,5.8026,172.34,172.23,16.2831]
[1721884624313,5.8029,172.33,172.23,16.2831]
[1721884624622,50.8031,172.32,172.23,16.2831]
[1721884625103,50.8032,172.32,172.23,16.2831]
[1721884626407,45.0,172.32,172.23,16.2831]
[1721884627010,74.18,172.32,172.21,0.8152807]
[1721884627205,20.0,172.31,172.21,0.8152807]
[1721884627510,5.8041,172.29,172.21,0.8152807]
[1721884628001,50.8038,172.3,172.21,0.8152807]
[1721884628391,45.0,172.3,172.21,0.8152807]
[1721884628702,395.013,172.34,172.21,0.8152807]
[1721884628703,400.8156,172.34,172.21,0.8152807]
[1721884628907,65.0,172.33,172.21,0.8152807]
[1721884629411,70.8028,172.33,172.21,0.8152807]
[1721884629706,70.8028,172.33,172.21,1.97630828]
[1721884630603,70.8028,172.33,172.21,0.8152807]
[1721884630910,65.0,172.33,172.21,1.9763091]
[1721884631096,45.0,172.33,172.23,15.766]
[1721884631408,389.2,172.34,172.24,1.16087397]
[1721884632611,395.0025,172.34,172.24,1.16087397]
[1721884633823,395.0025,172.34,172.23,15.766]
[1721884634019,5.8025,172.34,172.23,16.92688657]
[1721884635022,5.8025,172.34,172.24,1.16088683]
[1721884636216,5.8025,172.34,172.25,1.1608882]
[1721884636514,5.8025,172.34,172.23,16.92688874]
[1721884637421,5.8028,172.33,172.23,16.92688874]
[1721884639423,5.8025,172.34,172.23,15.766]
[1721884639727,5.8025,172.34,172.24,1.16085384]
[1721884640316,5.8028,172.33,172.23,15.766]
[1721884641007,5.8028,172.33,172.23,16.92687613]
[1721884643119,5.8028,172.33,172.23,15.766]
[1721884643521,29.18,172.33,172.23,15.766]
[1721884643845,45.0,172.32,172.23,15.766]
[1721884644049,50.8034,172.32,172.23,15.766]
[1721884644354,5.8034,172.32,172.23,15.766]
[1721884644509,5.8035,172.31,172.23,15.766]
[1721884646429,14.59,172.27,172.23,15.766]
[1721884648231,14.59,172.28,172.23,15.766]
[1721884652137,5.8028,172.33,172.23,30.356]
[1721884652327,14.59,172.28,172.23,30.356]
[1721884652919,14.59,172.27,172.23,15.766]
[1721884653831,14.59,172.26,172.23,15.766]
[1721884656239,14.59,172.26,172.21,15.4052807]
[1721884656743,14.59,172.25,172.21,0.8152807]
[1721884657125,14.59,172.24,172.21,0.8152807]
[1721884657642,14.59,172.25,172.21,0.8152807]
[1721884658841,14.59,172.26,172.21,15.4052807]
[1721884661340,14.59,172.26,172.21,0.8152807]
[1721884661534,14.59,172.26,172.21,15.4052807]
[1721884663946,14.59,172.26,172.21,0.8152807]
[1721884666066,14.59,172.25,172.21,0.8152807]
[1721884667368,16.75296131,172.3,172.21,0.8152807]
[1721884667369,14.59,172.23,172.21,0.8152807]
[1721884667734,14.59,172.24,172.21,0.8152807]
[1721884671056,14.59,172.23,172.21,0.8152807]
[1721884675260,5.8053,172.26,172.21,0.8152807]
[1721884675445,14.59,172.23,172.21,0.8152807]
[1721884676256,5.8049,172.27,172.21,0.8152807]
[1721884676458,14.59,172.23,172.21,0.8152807]
[1721884684063,14.59,172.22,172.21,0.8152807]
[1721884685346,59.59,172.22,172.21,0.8152807]
[1721884685762,20.3965,172.22,172.21,0.8152807]
[1721884685948,65.3965,172.22,172.21,0.8152807]
[1721884686254,81.65420001,172.22,172.21,0.8152807]
[1721884686654,71.2095,172.22,172.21,0.8152807]
[1721884686863,81.654627,172.22,172.21,0.8152807]
[1721884687067,101.654627,172.22,172.21,0.8152807]
[1721884687455,91.2095,172.22,172.21,0.8152807]
[1721884687643,45.03514781,172.22,172.21,0.8152807]
[1721884687850,34.59,172.22,172.21,0.8152807]
[1721884688168,40.3965,172.22,172.21,0.8152807]
[1721884688759,46.2095,172.22,172.21,0.8152807]
[1721884689161,91.2095,172.22,172.21,0.8152807]
[1721884689557,101.65508639,172.22,172.21,0.8152807]
[1721884689754,101.65492046,172.22,172.21,0.8152807]
[1721884689952,91.2095,172.22,172.21,0.8152807]
[1721884693366,91.2095,172.22,172.1,16.3434]
[1721884693367,5.813,172.19,172.1,16.3434]
[1721884693581,14.59,172.14,172.1,16.3434]
[1721884694857,65.0,172.22,172.11,14.59]
[1721884695066,6.05452328,172.25,172.19,14.59]
[1721884695265,6.05452328,172.25,172.16,16.5764]
[1721884695266,14.59,172.25,172.2,14.59]
[1721884695760,20.403,172.25,172.2,14.59]
[1721884695989,20.403,172.25,172.17,1.16144035]
[1721884695990,14.59,172.21,172.16,37.7411]
[1721884697064,14.59,172.22,172.17,14.59]
[1721884697659,14.59,172.21,172.16,37.7411]
[1721884698183,14.59,172.18,172.13,14.59]
[1721884698769,14.59,172.17,172.12,14.59]
[1721884699367,14.59,172.18,172.13,14.59]
[1721884699582,14.59,172.19,172.13,14.59]
[1721884699885,14.59,172.18,172.13,14.59]
[1721884700886,14.59,172.17,172.12,14.59]
[1721884701273,14.59,172.18,172.13,14.59]
[1721884701683,5.806,172.24,172.14,14.59]
[1721884701895,5.806,172.24,172.15,14.59]
[1721884701896,14.59,172.2,172.15,14.59]
[1721884702382,14.59,172.18,172.13,14.59]
[1721884703769,58.36,172.26,172.14,14.59]
[1721884704086,14.59,172.2,172.15,14.59]
[1721884705763,5.8055,172.25,172.16,14.59]
[1721884705963,6.4547,172.3,172.19,14.59]
[1721884706198,14.59,172.24,172.19,14.59]
[1721884706363,14.59,172.23,172.18,14.59]
[1721884706565,15.8953,172.34,172.22,14.59]
[1721884706769,15.8953,172.34,172.25,14.59]
[1721884706770,14.59,172.3,172.25,14.59]
[1721884706999,14.59,172.31,172.25,14.59]
[1721884707493,14.59,172.3,172.25,14.59]
[1721884708989,14.59,172.32,172.27,14.59]
[1721884710179,6.4923,172.35,172.27,14.59]
[1721884710382,389.2,172.37,172.29,14.59]
[1721884710572,405.3904,172.38,172.29,14.59]
[1721884710781,14.59,172.35,172.3,14.59]
[1721884711180,405.3904,172.38,172.3,14.59]
[1721884711385,14.59,172.35,172.3,14.59]
[1721884711592,411.1915,172.38,172.29,14.59]
[1721884711593,14.59,172.34,172.29,14.59]
[1721884711787,14.59,172.33,172.28,14.59]
[1721884712170,14.59,172.34,172.29,14.59]
[1721884713893,14.59,172.36,172.31,14.59]
[1721884714193,5.8001,172.41,172.32,14.59]
[1721884714412,14.59,172.36,172.31,14.59]
[1721884714787,90.62430869,172.44,172.31,14.59]
[1721884714984,14.59,172.37,172.32,14.59]
[1721884715698,90.62430869,172.44,172.35,14.59]
[1721884715699,15.4435,172.44,172.35,14.59]
[1721884716001,15.4435,172.44,172.36,14.59]
[1721884716002,14.59,172.41,172.36,14.59]
[1721884716680,14.59,172.4,172.35,14.59]
[1721884717081,16.381,172.48,172.37,14.59]
[1721884717395,14.59,172.42,172.37,14.59]
[1721884717787,16.381,172.48,172.35,14.59]
[1721884717788,14.59,172.4,172.35,14.59]
[1721884720002,14.59,172.41,172.36,14.59]
[1721884720303,14.59,172.4,172.35,14.59]
[1721884720908,405.99343905,172.5,172.35,14.59]
[1721884720909,16.6535,172.52,172.39,14.59]
[1721884721108,14.59,172.47,172.42,14.59]
[1721884721398,14.59,172.48,172.43,15.74971178]
[1721884721606,14.59,172.47,172.42,14.59]
[1721884721900,14.59,172.43,172.37,20.9883]
[1721884722111,14.59,172.42,172.37,20.9883]
[1721884722282,34.9282,172.47,172.37,6.3983]
[1721884722598,29.13,172.47,172.37,6.3983]
[1721884722812,65.0,172.46,172.35,15.0509]
[1721884722988,5.7991,172.44,172.35,15.0509]
[1721884723181,5.7991,172.44,172.36,1.16018639]
[1721884723581,5.7991,172.44,172.35,15.0509]
[1721884724699,70.7985,172.46,172.35,15.0509]
[1721884724898,65.0,172.46,172.35,15.0509]
[1721884725709,5.7992,172.44,172.35,15.0509]
[1721884726078,5.7992,172.44,172.31,15.3518]
[1721884726079,5.8005,172.4,172.31,15.3518]
[1721884726283,29.13,172.41,172.31,15.3518]
[1721884727609,34.9301,172.41,172.31,15.3518]
[1721884728504,5.8005,172.4,172.31,15.3518]
[1721884728704,45.0,172.39,172.31,15.3518]
[1721884729008,65.0,172.39,172.31,15.3518]
[1721884729316,20.0,172.39,172.31,15.3518]
[1721884730188,5.8008,172.39,172.31,15.3518]
[1721884730496,20.0,172.4,172.31,15.3518]
[1721884730696,20.0,172.4,172.29,6.0736]
[1721884730697,5.8015,172.37,172.29,6.0736]
[1721884730897,34.9311,172.38,172.29,6.0736]
[1721884731088,45.0,172.37,172.29,6.0736]
[1721884731587,50.8014,172.37,172.27,15.1056]
[1721884732200,5.8018,172.36,172.27,15.1056]
[1721884732509,29.13,172.35,172.27,15.1056]
[1721884732887,34.9322,172.35,172.27,15.1056]
[1721884733087,29.13,172.35,172.27,15.1056]
[1721884733297,45.0,172.34,172.27,15.1056]
[1721884733506,45.0,172.34,172.25,6.011]
[1721884733685,5.8029,172.33,172.25,6.011]
[1721884733890,50.8025,172.34,172.25,6.011]
[1721884734995,5.8028,172.33,172.23,15.1056]
[1721884735203,34.9331,172.32,172.23,15.1056]
[1721884735401,45.0,172.31,172.23,15.1056]
[1721884735901,25.8038,172.3,172.21,6.666]
[1721884736107,74.13,172.29,172.19,15.6231]
[1721884737408,79.9343,172.29,172.19,15.6231]
[1721884737592,74.13,172.29,172.19,15.6231]
[1721884737793,25.8046,172.28,172.19,15.6231]
[1721884737995,45.0,172.27,172.19,15.6231]
[1721884740013,50.8048,172.27,172.14,16.5573]
[1721884740196,34.9352,172.26,172.14,16.5573]
[1721884740391,50.8056,172.25,172.14,16.5573]
[1721884742516,45.0,172.25,172.14,16.5573]
[1721884742717,29.13,172.26,172.15,1.16148651]
[1721884743812,29.13,172.26,172.14,16.5573]
[1721884745326,34.9351,172.26,172.14,16.5573]
[1721884746220,5.8059,172.24,172.14,16.5573]
[1721884746537,5.8055,172.25,172.14,16.5573]
[1721884747605,29.13,172.26,172.14,16.5573]
[1721884749514,424.1335,172.31,172.15,46.16131643]
[1721884749718,5.8039,172.3,172.15,46.16131643]
[1721884749913,29.13,172.29,172.15,46.16131643]
[1721884750102,5.8055,172.25,172.14,16.5573]
[1721884750303,29.13,172.26,172.14,16.5573]
[1721884750512,5.8055,172.25,172.14,16.5573]
[1721884751106,34.9352,172.26,172.14,16.5573]
[1721884751312,29.13,172.26,172.14,16.5573]
[1721884751512,45.0,172.25,172.14,16.5573]
[1721884753514,51.6339,172.25,172.14,16.5573]
[1721884753823,20.0,172.24,172.14,16.5573]
[1721884754321,45.0,172.23,172.14,16.5573]
[1721884754927,5.8065,172.22,172.14,16.5573]
[1721884755399,50.8062,172.23,172.14,16.5573]
[1721884755923,20.0,172.24,172.14,16.5573]
[1721884756817,20.0,172.25,172.14,16.5573]
[1721884758326,25.8055,172.25,172.14,16.5573]
[1721884760236,14.6,172.2,172.15,14.6]
[1721884760808,14.6,172.19,172.14,31.1573]
[1721884761005,14.6,172.18,172.14,16.5573]
[1721884763613,14.6,172.17,172.14,16.5573]
[1721884765814,5.8065,172.22,172.14,16.5573]
[1721884766019,14.6,172.16,172.14,16.5573]
[1721884766435,14.6,172.17,172.14,16.5573]
[1721884772027,14.6,172.18,172.14,16.5573]
[1721884773153,14.6,172.17,172.14,16.5573]
[1721884778349,14.6,172.17,172.1,16.214]
[1721884778531,14.6,172.17,172.12,14.6]
[1721884779339,14.6,172.18,172.13,1.16175613]
[1721884779649,14.6,172.17,172.12,14.6]
[1721884780050,25.8055,172.25,172.13,14.6]
[1721884780227,14.6,172.19,172.13,14.6]
[1721884780428,14.6,172.19,172.14,14.6]
[1721884780627,14.6,172.18,172.13,14.6]
[1721884781122,20.0,172.25,172.14,14.6]
[1721884781344,14.6,172.22,172.17,14.6]
[1721884781540,14.6,172.23,172.18,14.6]
[1721884781735,14.6,172.22,172.17,14.6]
[1721884781945,14.6,172.2,172.16,6.1908]
[1721884782327,14.6,172.2,172.17,1.16146661]
[1721884782850,14.6,172.2,172.16,6.1908]
[1721884783738,70.0184,172.26,172.16,20.7908]
[1721884784750,14.6,172.2,172.16,6.1908]
[1721884785330,14.6,172.2,172.16,7.35228387]
[1721884786053,14.6,172.21,172.16,6.1908]
[1721884790845,14.6,172.21,172.16,20.7908]
[1721884792336,14.6,172.21,172.16,6.1908]
[1721884794752,14.6,172.26,172.2,14.6]
[1721884795066,14.6,172.26,172.21,15.76116213]
[1721884795363,403.8,172.27,172.22,14.6]
[1721884795565,14.6,172.26,172.21,14.6]
[1721884798870,14.6,172.25,172.18,16.76009053]
[1721884799048,389.2,172.29,172.2,14.6]
[1721884799372,389.2,172.29,172.21,15.761082]
[1721884799373,14.6,172.26,172.21,15.761082]
[1721884800446,14.6,172.27,172.22,14.6]
[1721884801454,403.8,172.28,172.23,14.6]
[1721884802367,14.6,172.28,172.23,14.6]
[1721884802563,14.6,172.28,172.24,1.16093619]
[1721884802878,16.4482,172.34,172.18,15.5989]
[1721884802879,14.6,172.25,172.2,14.6]
[1721884803248,16.4482,172.34,172.21,14.6]
[1721884803479,14.6,172.28,172.23,14.6]
[1721884807084,14.6,172.27,172.22,14.6]
[1721884807280,14.6,172.27,172.18,16.75982841]
[1721884807281,14.6,172.26,172.21,14.6]
[1721884808947,14.6,172.25,172.18,15.5989]
[1721884809153,14.6,172.23,172.18,30.1989]
[1721884810260,14.6,172.22,172.18,15.5989]
[1721884810571,14.6,172.21,172.15,14.6]
[1721884810950,14.6,172.2,172.15,14.6]
[1721884811561,14.6,172.21,172.15,14.6]
[1721884811754,14.6,172.21,172.14,22.9642184]
[1721884811755,14.6,172.21,172.16,14.6]
[1721884812068,14.6,172.23,172.18,14.6]
[1721884812452,14.6,172.24,172.19,14.6]
[1721884813150,14.6,172.23,172.18,14.6]
[1721884814667,14.6,172.24,172.19,14.6]
[1721884816555,14.6,172.25,172.19,14.6]
[1721884816849,14.6,172.25,172.2,60.76109667]
[1721884817060,14.6,172.25,172.2,59.6]
[1721884818676,6.2906,172.29,172.2,59.6]
[1721884818677,14.6,172.26,172.21,14.6]
[1721884820852,6.2906,172.29,172.15,1.16108653]
[1721884820853,14.6,172.3,172.25,14.6]
[1721884821058,649.1021,172.36,172.25,14.6]
[1721884821059,22.1834,172.37,172.29,14.6]
[1721884821276,6.2539,172.41,172.3,1.16049551]
[1721884821781,14.6,172.38,172.3,1.16049551]
[1721884821981,14.6,172.38,172.33,14.6]
[1721884822165,6.2539,172.41,172.3,1.16049551]
[1721884822357,6.2539,172.41,172.31,1.16029335]
[1721884822557,6.2539,172.41,172.28,1.16027382]
[1721884822861,6.2539,172.41,172.28,46.16027382]
[1721884825087,16.229,172.46,172.31,22.4153]
[1721884825380,16.229,172.46,172.32,46.1600244]
[1721884825577,16.229,172.46,172.33,1.15990688]
[1721884827289,16.229,172.46,172.33,30.29990688]
[1721884827578,16.229,172.46,172.34,45.0]
[1721884827767,16.229,172.46,172.35,1.15983832]
[1721884828659,16.229,172.46,172.36,1.15983981]
[1721884829279,6.0694,172.47,172.36,1.15983981]
[1721884829487,45.1412,172.5,172.36,30.29983981]
[1721884829773,45.1412,172.5,172.37,45.0]
[1721884829981,45.1412,172.5,172.38,1.15975839]
[1721884834164,45.1412,172.5,172.38,17.56335839]
[1721884834365,45.1412,172.5,172.39,45.0]
[1721884835358,50.9384,172.5,172.38,16.4036]
[1721884836088,45.1412,172.5,172.39,1.15982689]
[1721884836281,45.1412,172.5,172.4,1.15975972]
[1721884836465,16.0012,172.5,172.4,1.15975972]
[1721884836660,29.14,172.54,172.4,1.15975972]
[1721884837072,22.8293,172.55,172.4,1.15975972]
[1721884837487,22.8293,172.55,172.41,15.8761]